bitfinex/quotes_BTCUSD_20241013
["timestamp","ask_amount","ask_price","bid_price","bid_amount"]
[1728858617904,0.001642,62924.0,62923.0,0.75367023]
[1728858618130,0.001642,62924.0,62923.0,0.91937366]
[1728858618351,0.001642,62924.0,62923.0,0.92137366]
[1728858618577,0.001642,62924.0,62923.0,0.92933638]
[1728858619048,0.001642,62924.0,62923.0,0.91533638]
[1728858619278,0.0508163,62936.0,62935.0,0.192744]
[1728858619520,0.0508163,62936.0,62935.0,0.57654923]
[1728858619743,0.00164,62936.0,62935.0,0.58154923]
[1728858620639,0.00164,62936.0,62935.0,0.57657253]
[1728858620867,0.00164,62936.0,62935.0,0.57857253]
[1728858621108,0.00164,62936.0,62935.0,0.58354857]
[1728858621331,0.00164,62936.0,62935.0,0.58154857]
[1728858621556,0.00164,62936.0,62935.0,0.59554857]
[1728858621807,0.00164,62936.0,62935.0,0.60351024]
[1728858622048,0.00164,62936.0,62935.0,0.59554857]
[1728858622527,0.00164,62936.0,62935.0,0.61751024]
[1728858622757,0.00164,62936.0,62935.0,0.61951024]
[1728858622979,0.00164,62936.0,62935.0,0.61751024]
[1728858623208,0.00164,62936.0,62935.0,0.72948073]
[1728858623950,0.00164,62936.0,62935.0,0.71548073]
[1728858624407,0.00164,62936.0,62935.0,0.702548]
[1728858624635,0.00164,62936.0,62935.0,0.7154845]
[1728858625106,0.00164,62936.0,62935.0,0.7014845]
[1728858625330,0.00164,62936.0,62935.0,0.7294845]
[1728858626004,0.00164,62936.0,62935.0,0.7154845]
[1728858626269,0.00164,62936.0,62935.0,0.7294845]
[1728858628109,0.00164,62936.0,62935.0,0.70657253]
[1728858628326,0.00164,62936.0,62935.0,0.72948524]
[1728858629235,0.23772356,62944.0,62943.0,0.03685]
[1728858629457,0.23772356,62944.0,62943.0,0.53558697]
[1728858629701,0.23772356,62944.0,62943.0,0.63185743]
[1728858629892,0.0832,62947.0,62946.0,0.158866]
[1728858630122,0.0832,62947.0,62946.0,0.37580838]
[1728858631113,0.0832,62947.0,62946.0,0.38980838]
[1728858631792,0.0832,62947.0,62946.0,0.37687185]
[1728858632022,0.0832,62947.0,62946.0,0.4108367]
[1728858632241,0.0832,62947.0,62946.0,0.4248367]
[1728858632458,0.0832,62947.0,62946.0,0.43481802]
[1728858635394,0.0832,62947.0,62946.0,0.42188136]
[1728858635612,0.0832,62947.0,62946.0,0.4348309]
[1728858636330,0.2448,62947.0,62946.0,0.0618627]
[1728858636565,0.403663,62947.0,62946.0,0.0439074]
[1728858636792,0.403663,62947.0,62946.0,0.03893184]
[1728858636793,0.4285495,62947.0,62946.0,0.03893184]
[1728858637012,0.4285495,62947.0,62946.0,0.028]
[1728858637013,0.4301875,62947.0,62946.0,0.028]
[1728858637496,0.31774,62945.0,62936.0,0.000819]
[1728858637746,0.158889,62937.0,62936.0,0.000819]
[1728858638001,0.16570343,62944.0,62936.0,0.000819]
[1728858638002,0.16570343,62944.0,62936.0,0.00579603]
[1728858638236,0.001638,62947.0,62937.0,0.00497703]
[1728858638472,0.160501,62947.0,62946.0,0.001]
[1728858638959,0.43088966,62947.0,62946.0,0.001]
[1728858639183,0.27202666,62947.0,62946.0,0.001]
[1728858639618,0.238168,62946.0,62942.0,0.158875]
[1728858640295,0.0793,62946.0,62939.0,0.317767]
[1728858640520,0.238167,62946.0,62942.0,0.158876]
[1728858640967,0.0793,62946.0,62945.0,0.158868]
[1728858641186,0.0793,62946.0,62945.0,0.25487494]
[1728858642080,0.0793,62946.0,62945.0,0.25985128]
[1728858642312,0.0793,62946.0,62943.0,0.158872]
[1728858642549,0.0793,62946.0,62944.0,0.16384642]
[1728858642925,0.0793,62946.0,62945.0,0.158868]
[1728858642930,0.0793,62946.0,62945.0,0.165868]
[1728858643126,0.0793,62946.0,62945.0,0.158868]
[1728858643839,0.0793,62946.0,62945.0,0.2383047]
[1728858644328,0.0793,62946.0,62945.0,0.2493047]
[1728858644329,0.10418734,62946.0,62945.0,0.2493047]
[1728858644835,0.10418734,62946.0,62945.0,0.25428093]
[1728858645084,0.10418734,62946.0,62945.0,0.25028093]
[1728858645793,0.10518734,62946.0,62945.0,0.17084419]
[1728858646008,0.10518734,62946.0,62945.0,0.18184419]
[1728858646738,0.10418734,62946.0,62945.0,0.18884419]
[1728858646947,0.10418734,62946.0,62945.0,0.16384419]
[1728858647160,0.10418734,62946.0,62945.0,0.24377851]
[1728858647370,0.10418734,62946.0,62945.0,0.25577851]
[1728858647588,0.10418734,62946.0,62945.0,0.17584419]
[1728858648038,0.10518734,62946.0,62945.0,0.18884419]
[1728858648465,0.10418734,62946.0,62945.0,0.17584419]
[1728858648678,0.10518734,62946.0,62945.0,0.18484419]
[1728858649763,0.10518734,62946.0,62945.0,0.179868]
[1728858651071,0.10518734,62946.0,62945.0,0.2614047]
[1728858651280,0.0803,62946.0,62945.0,0.2614047]
[1728858652360,0.0803,62946.0,62945.0,0.1909]
[1728858653942,0.0803,62946.0,62945.0,0.032032]
[1728858654183,0.55866943,62946.0,62945.0,0.032032]
[1728858654395,0.41785461,62946.0,62945.0,0.032032]
[1728858654617,0.41785461,62946.0,62945.0,0.021]
[1728858655038,0.41785461,62946.0,62945.0,0.012]
[1728858655285,0.25798861,62946.0,62945.0,0.012]
[1728858655491,0.25798861,62946.0,62945.0,0.013]
[1728858655706,0.25798861,62946.0,62945.0,0.171868]
[1728858655942,0.25798861,62946.0,62945.0,0.170868]
[1728858656157,0.25798861,62946.0,62945.0,0.01105062]
[1728858656382,0.25798861,62946.0,62945.0,0.25546158]
[1728858657252,0.26098861,62946.0,62945.0,0.25546158]
[1728858657909,0.25798861,62946.0,62945.0,0.25546158]
[1728858658146,0.25798861,62946.0,62945.0,0.25746158]
[1728858659957,0.25798861,62946.0,62945.0,0.25828058]
[1728858660193,0.25962661,62946.0,62945.0,0.25828058]
[1728858660403,0.25962661,62946.0,62945.0,0.2632568]
[1728858661278,0.234738,62946.0,62945.0,0.2632568]
[1728858661731,0.001638,62946.0,62945.0,0.42896023]
[1728858661953,0.001638,62946.0,62945.0,0.59018424]
[1728858662254,0.001638,62946.0,62945.0,0.61315215]
[1728858662474,0.001638,62946.0,62945.0,0.20068175]
[1728858662689,0.235338,62946.0,62945.0,0.18271384]
[1728858662903,0.235338,62946.0,62945.0,0.17771384]
[1728858663339,0.235338,62946.0,62945.0,0.18971384]
[1728858663586,0.235338,62946.0,62945.0,0.30599602]
[1728858664017,0.235338,62946.0,62945.0,0.29199602]
[1728858664252,0.236338,62946.0,62945.0,0.30399602]
[1728858664471,0.236338,62946.0,62945.0,0.31799602]
[1728858664924,0.235338,62946.0,62945.0,0.30599602]
[1728858665345,0.236338,62946.0,62945.0,0.31499602]
[1728858665998,0.236338,62946.0,62945.0,0.32295759]
[1728858666218,0.236338,62946.0,62945.0,0.18471384]
[1728858667286,0.236338,62946.0,62945.0,0.19871384]
[1728858667716,0.236338,62946.0,62945.0,0.19373762]
[1728858667936,0.236338,62946.0,62945.0,0.19871366]
[1728858669963,0.236338,62946.0,62945.0,0.2066753]
[1728858670607,0.236338,62946.0,62945.0,0.33923897]
[1728858671533,0.236338,62946.0,62945.0,0.3392389]
[1728858672693,0.236338,62946.0,62945.0,0.20667523]
[1728858672924,0.395204,62946.0,62945.0,0.03486962]
[1728858673388,0.395204,62946.0,62945.0,0.023819]
[1728858673663,0.395204,62946.0,62936.0,0.318598]
[1728858673664,0.158889,62937.0,62936.0,0.000819]
[1728858673934,0.393989,62937.0,62936.0,0.000819]
[1728858674426,0.41888243,62937.0,62936.0,0.000819]
[1728858674919,0.41888243,62937.0,62936.0,0.001819]
[1728858675765,0.41888243,62937.0,62936.0,0.005819]
[1728858675983,0.41888243,62937.0,62936.0,0.001819]
[1728858676232,0.41888243,62937.0,62936.0,0.000819]
[1728858676470,0.42088243,62937.0,62936.0,0.001819]
[1728858676687,0.42088243,62937.0,62936.0,0.000819]
[1728858676895,0.41888243,62937.0,62936.0,0.000819]
[1728858677117,0.41888243,62937.0,62936.0,0.002819]
[1728858677340,0.41988243,62937.0,62936.0,0.002819]
[1728858678041,0.41988243,62937.0,62936.0,0.01392932]
[1728858678270,0.57175659,62937.0,62936.0,0.002819]
[1728858678749,0.41988243,62937.0,62936.0,0.002819]
[1728858679933,0.26099343,62937.0,62936.0,0.16171]
[1728858680205,0.02589343,62937.0,62936.0,0.16171]
[1728858680432,0.02589343,62937.0,62936.0,0.34348717]
[1728858680668,0.001,62937.0,62936.0,0.34348717]
[1728858680907,0.001,62937.0,62936.0,0.44269091]
[1728858681160,0.23772356,62942.0,62941.0,0.158878]
[1728858681631,0.23772356,62942.0,62941.0,0.16996815]
[1728858681873,0.0801,62944.0,62943.0,0.158873]
[1728858682134,0.0801,62944.0,62943.0,0.01108734]
[1728858682373,0.43267974,62944.0,62943.0,0.01108734]
[1728858682607,0.43267974,62944.0,62938.0,0.158884]
[1728858682608,0.158877,62942.0,62938.0,0.158884]
[1728858682826,0.159877,62942.0,62941.0,0.01]
[1728858683068,0.158877,62942.0,62939.0,0.01102951]
[1728858683295,0.158877,62942.0,62941.0,0.0110267]
[1728858683525,0.721317,62944.0,62943.0,0.004]
[1728858683762,0.158876,62942.0,62938.0,0.158885]
[1728858684223,0.71221409,62944.0,62936.0,0.000819]
[1728858684460,0.158879,62941.0,62939.0,0.01102951]
[1728858684716,0.158878,62942.0,62938.0,0.158885]
[1728858684951,0.158878,62942.0,62939.0,0.01102951]
[1728858685213,0.159878,62942.0,62941.0,0.006]
[1728858685479,0.159878,62942.0,62939.0,0.01102951]
[1728858685480,0.158878,62942.0,62939.0,0.01102951]
[1728858685708,0.158878,62942.0,62941.0,0.0110267]
[1728858685946,0.317749,62943.0,62941.0,0.0110267]
[1728858686193,0.158876,62942.0,62937.0,0.158888]
[1728858686430,0.158876,62942.0,62939.0,0.004]
[1728858686672,0.158876,62942.0,62938.0,0.16991692]
[1728858686924,0.158876,62942.0,62939.0,0.01102951]
[1728858687389,0.158876,62942.0,62941.0,0.004]
[1728858687917,0.158876,62942.0,62941.0,0.0150267]
[1728858688163,0.36533243,62942.0,62941.0,0.0150267]
[1728858688429,0.241876,62942.0,62941.0,0.0150267]
[1728858688657,0.241876,62942.0,62941.0,0.004]
[1728858688905,0.241876,62942.0,62941.0,0.01109124]
[1728858688906,0.83340344,62942.0,62941.0,0.01109124]
[1728858689173,0.83340344,62942.0,62939.0,0.001]
[1728858689174,0.241881,62940.0,62939.0,0.001]
[1728858689368,0.40310501,62940.0,62939.0,0.001]
[1728858689588,0.241881,62940.0,62939.0,0.001]
[1728858690727,0.241881,62940.0,62936.0,0.000819]
[1728858690728,0.083,62940.0,62936.0,0.000819]
[1728858690952,0.241882,62940.0,62936.0,0.159708]
[1728858691171,0.083,62940.0,62937.0,0.01111233]
[1728858691621,0.083,62940.0,62939.0,0.002]
[1728858691863,0.241881,62940.0,62939.0,0.002]
[1728858692086,0.242881,62940.0,62939.0,0.01310952]
[1728858692308,0.241881,62940.0,62939.0,0.01310952]
[1728858692751,0.90310448,62940.0,62939.0,0.01310952]
[1728858692975,1.00310448,62940.0,62939.0,0.01310952]
[1728858693230,1.00410448,62940.0,62939.0,0.008]
[1728858693453,1.2105431,62940.0,62939.0,0.002]
[1728858693691,0.500889,62937.0,62936.0,0.000819]
[1728858693927,0.66211301,62937.0,62936.0,0.000819]
[1728858694171,0.81004702,62937.0,62936.0,0.000819]
[1728858694415,1.01848564,62937.0,62936.0,0.000819]
[1728858694898,1.01848564,62937.0,62936.0,0.001819]
[1728858694899,1.02548564,62937.0,62936.0,0.001819]
[1728858695123,0.2482,62928.0,62918.0,0.00082]
[1728858695341,0.88616301,62928.0,62927.0,0.23772356]
[1728858695565,0.158922,62924.0,62921.0,0.01125309]
[1728858695816,0.317842,62925.0,62919.0,0.158933]
[1728858696065,0.158924,62923.0,62919.0,0.158933]
[1728858696304,0.43432058,62928.0,62918.0,0.00082]
[1728858696538,0.15893,62921.0,62918.0,0.00082]
[1728858696774,0.158927,62922.0,62918.0,0.159756]
[1728858697006,0.317843,62925.0,62918.0,0.00082]
[1728858697240,0.237134,62919.0,62918.0,0.00082]
[1728858697484,0.56435801,62919.0,62918.0,0.00082]
[1728858698424,0.81435801,62919.0,62918.0,0.00082]
[1728858698658,0.91735801,62919.0,62918.0,0.00082]
[1728858698895,0.91935801,62919.0,62918.0,0.00082]
[1728858699117,1.08072772,62919.0,62918.0,0.00082]
[1728858699339,1.07872772,62919.0,62918.0,0.00082]
[1728858699562,1.08272772,62919.0,62918.0,0.00082]
[1728858699809,1.07572772,62919.0,62918.0,0.00082]
[1728858700032,1.08072772,62919.0,62918.0,0.00082]
[1728858700253,1.08772772,62919.0,62918.0,0.00082]
[1728858700703,1.09272772,62919.0,62918.0,0.00182]
[1728858700962,1.10472772,62919.0,62918.0,0.00182]
[1728858701866,1.10472772,62919.0,62918.0,0.00082]
[1728858702104,1.09272772,62919.0,62918.0,0.00082]
[1728858702345,1.10172772,62919.0,62918.0,0.00182]
[1728858704377,1.12663006,62919.0,62918.0,0.00182]
[1728858707406,0.96526035,62919.0,62918.0,0.00182]
[1728858711199,0.94035801,62919.0,62918.0,0.00182]
[1728858714137,0.96525989,62919.0,62918.0,0.00182]
[1728858715485,1.22598345,62919.0,62918.0,0.00182]
[1728858715710,1.03182127,62919.0,62918.0,0.00182]
[1728858715934,1.19319098,62919.0,62918.0,0.00182]
[1728858716616,1.19119098,62919.0,62918.0,0.00182]
[1728858716848,0.96525989,62919.0,62918.0,0.00182]
[1728858717526,0.71525989,62919.0,62918.0,0.00182]
[1728858718221,0.69425989,62919.0,62918.0,0.00082]
[1728858718462,0.95725989,62919.0,62918.0,0.00082]
[1728858718675,1.1186296,62919.0,62918.0,0.00082]
[1728858720956,0.95225989,62919.0,62918.0,0.00082]
[1728858721173,0.92735801,62919.0,62918.0,0.00082]
[1728858721845,1.16508157,62919.0,62918.0,0.00082]
[1728858722067,0.99191939,62919.0,62918.0,0.00082]
[1728858723208,0.99391939,62919.0,62918.0,0.00082]
[1728858723447,1.11372772,62919.0,62918.0,0.00082]
[1728858723934,0.028,62911.0,62910.0,0.000821]
[1728858724161,1.01788487,62911.0,62910.0,0.000821]
[1728858725129,1.01588487,62911.0,62910.0,0.000821]
[1728858725362,1.17378903,62911.0,62910.0,0.000821]
[1728858725602,1.21169628,62911.0,62910.0,0.001821]
[1728858725838,1.22569628,62911.0,62910.0,0.001821]
[1728858726077,0.3643,62904.0,62903.0,0.000821]
[1728858726329,0.82719944,62904.0,62903.0,0.000821]
[1728858726560,0.65649601,62904.0,62903.0,0.000821]
[1728858727003,0.68140392,62904.0,62903.0,0.000821]
[1728858727463,0.93140392,62904.0,62903.0,0.000821]
[1728858728157,1.43140392,62904.0,62903.0,0.000821]
[1728858729046,1.43940392,62904.0,62903.0,0.000821]
[1728858729499,1.05513192,62904.0,62903.0,0.000821]
[1728858730172,1.21410392,62904.0,62903.0,0.0107212]
[1728858730392,0.79413192,62904.0,62903.0,0.000821]
[1728858730637,1.03341773,62904.0,62903.0,0.000821]
[1728858730865,0.94510392,62904.0,62903.0,0.000821]
[1728858731096,0.78613192,62904.0,62903.0,0.000821]
[1728858731314,0.76122401,62904.0,62903.0,0.000821]
[1728858731538,0.92019601,62904.0,62903.0,0.000821]
[1728858731772,0.92319601,62904.0,62903.0,0.000821]
[1728858732050,0.92319601,62904.0,62903.0,0.0107212]
[1728858732317,0.92319601,62904.0,62903.0,0.000821]
[1728858732318,0.92619601,62904.0,62903.0,0.000821]
[1728858733089,0.92719601,62904.0,62903.0,0.000821]
[1728858733367,1.41271957,62904.0,62903.0,0.000821]
[1728858733608,1.36436572,62904.0,62903.0,0.000821]
[1728858733831,1.36736572,62904.0,62903.0,0.000821]
[1728858734055,1.36436572,62904.0,62903.0,0.000821]
[1728858734279,1.63927522,62904.0,62903.0,0.000821]
[1728858734749,1.63327522,62904.0,62903.0,0.000821]
[1728858734974,1.63727522,62904.0,62903.0,0.000821]
[1728858735480,1.63327522,62904.0,62903.0,0.000821]
[1728858735699,1.64727522,62904.0,62903.0,0.000821]
[1728858735920,1.64927522,62904.0,62903.0,0.000821]
[1728858736144,1.64727522,62904.0,62903.0,0.000821]
[1728858736366,1.65727522,62904.0,62903.0,0.000821]
[1728858737301,1.47290551,62904.0,62903.0,0.000821]
[1728858737520,1.22290551,62904.0,62903.0,0.000821]
[1728858739574,1.47290551,62904.0,62903.0,0.000821]
[1728858740244,1.52039354,62904.0,62903.0,0.000821]
[1728858740474,1.47290551,62904.0,62903.0,0.000821]
[1728858740716,1.68177527,62904.0,62903.0,0.000821]
[1728858740947,1.44299601,62904.0,62903.0,0.000821]
[1728858741901,1.44799601,62904.0,62903.0,0.000821]
[1728858742799,1.44299601,62904.0,62903.0,0.000821]
[1728858744002,1.27749601,62904.0,62903.0,0.000821]
[1728858744221,1.43886572,62904.0,62903.0,0.000821]
[1728858744446,1.18886572,62904.0,62903.0,0.000821]
[1728858745321,1.21377332,62904.0,62903.0,0.000821]
[1728858745546,1.46377332,62904.0,62903.0,0.000821]
[1728858746262,1.30240361,62904.0,62903.0,0.000821]
[1728858747901,1.28840361,62904.0,62903.0,0.000821]
[1728858748393,1.27840361,62904.0,62903.0,0.000821]
[1728858748638,1.28140361,62904.0,62903.0,0.000821]
[1728858748882,1.28940361,62904.0,62903.0,0.000821]
[1728858749129,1.33695521,62904.0,62903.0,0.000821]
[1728858751242,1.31204761,62904.0,62903.0,0.000821]
[1728858753437,1.47841732,62904.0,62903.0,0.000821]
[1728858753670,1.7029545,62904.0,62903.0,0.000821]
[1728858753904,1.7517303,62904.0,62903.0,0.000821]
[1728858754162,1.7497303,62904.0,62903.0,0.000821]
[1728858754391,1.72507735,62904.0,62903.0,0.000821]
[1728858754614,1.72207735,62904.0,62903.0,0.000821]
[1728858754838,1.72707735,62904.0,62903.0,0.000821]
[1728858755305,1.64197415,62904.0,62903.0,0.000821]
[1728858755535,1.64997415,62904.0,62903.0,0.000821]
[1728858755773,1.69153553,62904.0,62903.0,0.000821]
[1728858756005,1.65197415,62904.0,62903.0,0.000821]
[1728858756475,1.63997415,62904.0,62903.0,0.000821]
[1728858756931,1.65497415,62904.0,62903.0,0.000821]
[1728858757411,1.64197415,62904.0,62903.0,0.000821]
[1728858757657,1.64297415,62904.0,62903.0,0.000821]
[1728858757944,1.65197415,62904.0,62903.0,0.000821]
[1728858760206,1.63797415,62904.0,62903.0,0.000821]
[1728858760430,1.65197415,62904.0,62903.0,0.000821]
[1728858760648,1.64297415,62904.0,62903.0,0.000821]
[1728858760882,1.65297415,62904.0,62903.0,0.000821]
[1728858761110,1.63897415,62904.0,62903.0,0.000821]
[1728858761378,1.76072052,62904.0,62903.0,0.000821]
[1728858761617,1.77072052,62904.0,62903.0,0.000821]
[1728858761848,1.77081431,62904.0,62903.0,0.000821]
[1728858762097,1.62806572,62904.0,62903.0,0.000821]
[1728858763035,1.61406572,62904.0,62903.0,0.000821]
[1728858763508,1.62806572,62904.0,62903.0,0.000821]
[1728858763741,1.60406572,62904.0,62903.0,0.000821]
[1728858764240,1.61806572,62904.0,62903.0,0.000821]
[1728858764474,1.65497679,62904.0,62903.0,0.000821]
[1728858764699,1.64297679,62904.0,62903.0,0.000821]
[1728858764949,1.64573963,62904.0,62903.0,0.000821]
[1728858765654,1.65973963,62904.0,62903.0,0.000821]
[1728858765883,1.65697679,62904.0,62903.0,0.000821]
[1728858769313,1.70201876,62904.0,62903.0,0.000821]
[1728858770144,1.70201876,62904.0,62900.0,0.016549]
[1728858770145,0.69248243,62901.0,62900.0,0.016549]
[1728858770375,0.68800301,62901.0,62900.0,0.016549]
[1728858770596,0.73304498,62901.0,62900.0,0.016549]
[1728858771490,1.1436452,62901.0,62900.0,0.016549]
[1728858771935,1.1576452,62901.0,62900.0,0.016549]
[1728858771936,0.16599,62897.0,62896.0,0.00082]
[1728858772160,0.78162087,62897.0,62896.0,0.00082]
[1728858772384,1.02792087,62897.0,62896.0,0.00082]
[1728858773362,1.04192087,62897.0,62896.0,0.00082]
[1728858773636,1.46729058,62897.0,62896.0,0.00082]
[1728858773906,1.62421744,62897.0,62896.0,0.00082]
[1728858774145,1.60121744,62897.0,62896.0,0.00082]
[1728858774403,1.64013051,62897.0,62896.0,0.00082]
[1728858774653,1.62613051,62897.0,62896.0,0.00082]
[1728858774900,1.64013051,62897.0,62896.0,0.00082]
[1728858775120,1.80150022,62897.0,62896.0,0.00082]
[1728858775358,1.82450022,62897.0,62896.0,0.00082]
[1728858776068,1.81050022,62897.0,62896.0,0.00082]
[1728858776298,1.82450022,62897.0,62896.0,0.00082]
[1728858776541,1.83350022,62897.0,62896.0,0.00082]
[1728858776768,1.80550022,62897.0,62896.0,0.00082]
[1728858777026,1.81850022,62897.0,62896.0,0.00082]
[1728858777255,1.82650022,62897.0,62896.0,0.00082]
[1728858777491,1.80950022,62897.0,62896.0,0.00082]
[1728858777741,1.81650022,62897.0,62896.0,0.00082]
[1728858778966,1.80350022,62897.0,62896.0,0.00082]
[1728858779205,1.81550022,62897.0,62896.0,0.00082]
[1728858780437,1.79650022,62897.0,62896.0,0.00082]
[1728858780679,1.81050022,62897.0,62896.0,0.00082]
[1728858780960,1.82050022,62897.0,62896.0,0.00082]
[1728858781215,1.79558715,62897.0,62896.0,0.00082]
[1728858781919,1.98332744,62897.0,62896.0,0.00082]
[1728858782156,1.93828547,62897.0,62896.0,0.00082]
[1728858782675,1.94026063,62897.0,62896.0,0.00082]
[1728858782942,1.84262912,62897.0,62896.0,0.00082]
[1728858783467,1.82862912,62897.0,62896.0,0.00082]
[1728858783725,1.81862912,62897.0,62896.0,0.00082]
[1728858783978,1.84662912,62897.0,62896.0,0.00082]
[1728858784239,1.85754298,62897.0,62896.0,0.00082]
[1728858784522,1.85754298,62897.0,62893.0,0.1]
[1728858784523,0.288997,62894.0,62893.0,0.08996847]
[1728858784728,0.69422101,62894.0,62893.0,0.08996847]
[1728858784972,0.73926298,62894.0,62893.0,0.08996847]
[1728858785448,0.028,62883.0,62881.0,0.0005]
[1728858785718,0.92565247,62883.0,62881.0,0.0005]
[1728858785982,0.85435244,62883.0,62881.0,0.0005]
[1728858786263,0.92756894,62883.0,62881.0,0.0005]
[1728858786518,0.69516639,62883.0,62881.0,0.0005]
[1728858787226,0.70616639,62883.0,62881.0,0.0005]
[1728858787445,1.20916639,62883.0,62881.0,0.0005]
[1728858787893,1.21016639,62883.0,62881.0,0.0005]
[1728858788122,1.19616639,62883.0,62881.0,0.0005]
[1728858789066,1.20216639,62883.0,62881.0,0.0005]
[1728858789758,1.20116639,62883.0,62881.0,0.0005]
[1728858790428,1.19516639,62883.0,62881.0,0.0005]
[1728858790660,1.24514363,62883.0,62881.0,0.0005]
[1728858790940,1.41084706,62883.0,62881.0,0.0005]
[1728858791184,1.68285959,62883.0,62881.0,0.0005]
[1728858791413,1.72962455,62883.0,62881.0,0.0005]
[1728858791644,1.65432968,62883.0,62881.0,0.0005]
[1728858791871,1.73362455,62883.0,62881.0,0.0005]
[1728858792100,1.7331008,62883.0,62881.0,0.0005]
[1728858792331,1.65382968,62883.0,62881.0,0.0005]
[1728858792562,1.65582968,62883.0,62881.0,0.0005]
[1728858793009,1.65382968,62883.0,62881.0,0.0005]
[1728858793710,1.66982968,62883.0,62881.0,0.0005]
[1728858794213,1.70087165,62883.0,62881.0,0.0005]
[1728858794477,1.70087165,62883.0,62874.0,0.0075]
[1728858794478,0.85694686,62877.0,62874.0,0.0075]
[1728858794761,1.01817087,62877.0,62874.0,0.0075]
[1728858794962,0.85246744,62877.0,62874.0,0.0075]
[1728858795429,1.06321284,62877.0,62874.0,0.0075]
[1728858795685,1.01425689,62877.0,62874.0,0.0075]
[1728858795926,1.26448815,62877.0,62874.0,0.0075]
[1728858796382,1.26648815,62877.0,62874.0,0.0075]
[1728858796604,1.14774067,62877.0,62874.0,0.0075]
[1728858797337,1.16174067,62877.0,62874.0,0.0075]
[1728858797558,1.42574067,62877.0,62874.0,0.0075]
[1728858798232,1.26003724,62877.0,62874.0,0.0075]
[1728858798468,0.289045,62875.0,62874.0,0.002319]
[1728858798713,0.52148989,62875.0,62874.0,0.002319]
[1728858798943,0.56653186,62875.0,62874.0,0.002319]
[1728858799636,0.81653186,62875.0,62874.0,0.002319]
[1728858800107,0.82953186,62875.0,62874.0,0.002319]
[1728858800341,0.9508091,62875.0,62874.0,0.002319]
[1728858800569,0.95079867,62875.0,62874.0,0.002319]
[1728858800792,0.98853548,62875.0,62874.0,0.002319]
[1728858801242,0.98852896,62875.0,62874.0,0.002319]
[1728858801702,0.97452896,62875.0,62874.0,0.002319]
[1728858801921,1.0134502,62875.0,62874.0,0.002319]
[1728858802617,1.0114502,62875.0,62874.0,0.002319]
[1728858802855,0.76046696,62875.0,62874.0,0.002319]
[1728858803082,0.69826901,62875.0,62874.0,0.002319]
[1728858803310,0.68426901,62875.0,62874.0,0.002319]
[1728858803806,0.59826901,62875.0,62874.0,0.002319]
[1728858804041,0.57026901,62875.0,62874.0,0.002319]
[1728858804282,0.58326901,62875.0,62874.0,0.002319]
[1728858804515,0.33026901,62875.0,62874.0,0.002319]
[1728858804974,0.32026901,62875.0,62874.0,0.002319]
[1728858805214,0.32526901,62875.0,62874.0,0.002319]
[1728858805442,0.259048,62874.0,62873.0,0.00082]
[1728858805673,0.42027201,62874.0,62873.0,0.00082]
[1728858806369,0.42027201,62874.0,62873.0,0.00811707]
[1728858806598,0.42027201,62874.0,62873.0,0.00082]
[1728858806831,0.42427201,62874.0,62873.0,0.00082]
[1728858807056,0.63068369,62874.0,62873.0,0.00082]
[1728858807552,0.63501741,62874.0,62873.0,0.00082]
[1728858808922,0.42427201,62874.0,62873.0,0.00082]
[1728858810210,0.44919046,62874.0,62873.0,0.00082]
[1728858810528,0.69919046,62874.0,62873.0,0.00082]
[1728858811438,0.67427201,62874.0,62873.0,0.00082]
[1728858813521,0.42427201,62874.0,62873.0,0.00082]
[1728858815068,0.44919108,62874.0,62873.0,0.00082]
[1728858815540,0.69919108,62874.0,62873.0,0.00082]
[1728858816933,0.86056079,62874.0,62873.0,0.00082]
[1728858817159,0.69919108,62874.0,62873.0,0.00082]
[1728858817618,0.44919108,62874.0,62873.0,0.00082]
[1728858819468,0.69919108,62874.0,62873.0,0.00082]
[1728858821338,0.67427201,62874.0,62873.0,0.00082]
[1728858821571,0.42427201,62874.0,62873.0,0.00082]
[1728858822947,0.004,62874.0,62873.0,0.15987]
[1728858823425,0.004,62874.0,62873.0,0.209471]
[1728858823427,0.00564,62874.0,62873.0,0.21666995]
[1728858824111,0.00164,62874.0,62873.0,0.21666995]
[1728858824333,0.00564,62874.0,62873.0,0.21666995]
[1728858824789,0.00564,62874.0,62873.0,0.23885175]
[1728858824790,0.00164,62874.0,62873.0,0.23885175]
[1728858825027,0.00264,62874.0,62873.0,0.24501404]
[1728858825250,0.00364,62874.0,62873.0,0.25298489]
[1728858825492,0.00264,62874.0,62873.0,0.4212089]
[1728858825717,0.00264,62874.0,62873.0,0.42002776]
[1728858826166,0.00264,62874.0,62873.0,0.42345593]
[1728858826404,0.00164,62874.0,62873.0,0.42345593]
[1728858826630,0.00364,62874.0,62873.0,0.41847413]
[1728858827105,0.00264,62874.0,62873.0,0.41847413]
[1728858827325,0.00364,62874.0,62873.0,0.41050393]
[1728858827545,0.00264,62874.0,62873.0,0.41050393]
[1728858827759,0.00364,62874.0,62873.0,0.41050393]
[1728858828449,0.00364,62874.0,62873.0,0.40552213]
[1728858828675,0.00364,62874.0,62873.0,0.41050322]
[1728858829365,0.00364,62874.0,62873.0,0.40850322]
[1728858830295,0.00364,62874.0,62873.0,0.40798264]
[1728858830772,0.00364,62874.0,62873.0,0.40300155]
[1728858831055,0.50364,62874.0,62873.0,0.40300155]
[1728858833128,0.50364,62874.0,62873.0,0.56920715]
[1728858833345,0.50364,62874.0,62873.0,0.57620715]
[1728858834024,0.00364,62874.0,62873.0,0.57620715]
[1728858836280,0.00364,62874.0,62873.0,0.40850372]
[1728858836503,0.00364,62874.0,62873.0,0.24229812]
[1728858836729,0.00364,62874.0,62873.0,0.23729812]
[1728858837168,0.00364,62874.0,62873.0,0.24229812]
[1728858838284,0.00364,62874.0,62873.0,0.24429812]
[1728858838992,0.00364,62874.0,62873.0,0.24229812]
[1728858840552,0.00364,62874.0,62873.0,0.24429812]
[1728858840778,0.00364,62874.0,62873.0,0.41050352]
[1728858841252,0.00364,62874.0,62873.0,0.43350352]
[1728858841720,0.23772356,62883.0,62880.0,0.166033]
[1728858841943,0.23772356,62883.0,62880.0,0.54703183]
[1728858842871,0.00264,62881.0,62880.0,0.54703183]
[1728858843531,0.00464,62881.0,62880.0,0.54703183]